bitfinex-derivatives/quotes_SOLF0:USTF0_20250228
["timestamp","ask_amount","ask_price","bid_price","bid_amount"]
[1740751694984,1.47788584,145.18,145.08,0.05069454]
[1740751695185,1.47788584,145.18,144.93,3.5062]
[1740751695386,1.47788584,145.18,145.12,0.04531314]
[1740751695585,1.47788584,145.18,145.05,6.8981]
[1740751695884,1.47788584,145.18,145.14,0.05002792]
[1740751696085,1.47788584,145.18,145.02,220.84]
[1740751696285,1.47788584,145.18,145.03,3.5776]
[1740751696587,1.47788584,145.18,145.15,0.05119039]
[1740751696890,1.47788584,145.18,145.09,0.04883764]
[1740751697290,13.7554,145.49,145.1,1.37835975]
[1740751697291,3.7017,145.48,145.1,1.37835975]
[1740751697488,3.7017,145.48,145.12,0.0468999]
[1740751697688,6.34741466,145.47,145.1,1.37835975]
[1740751697889,1.20706074,145.46,145.1,1.37835975]
[1740751698089,21.90706074,145.46,145.1,1.37835975]
[1740751698290,2.58210371,145.45,144.97,3.4954]
[1740751698585,21.01,145.41,145.07,14.3884503]
[1740751698787,220.84,145.49,145.07,14.3884503]
[1740751698788,220.7,145.4,145.08,1.37854976]
[1740751698985,220.7,145.4,145.08,5.11144976]
[1740751699190,6.8864,145.3,145.08,1.37854976]
[1740751699381,1.37561042,145.39,145.23,1.482e-05]
[1740751699382,0.04515243,145.25,145.23,1.482e-05]
[1740751699583,220.7,145.29,145.08,1.37854976]
[1740751699790,6.8962,145.09,145.08,1.37854976]
[1740751699986,6.8962,145.09,145.06,0.27823]
[1740751699987,220.7,145.11,145.06,3e-05]
[1740751700193,220.7,145.1,144.87,24.17300387]
[1740751700486,220.7,145.1,145.06,66.67291839]
[1740751700690,220.7,145.1,145.05,100.90184707]
[1740751700691,220.7,145.1,145.03,131.36893942]
[1740751701092,0.05076599,145.08,145.03,131.36893942]
[1740751701484,0.05076599,145.08,145.05,6.94011679]
[1740751701795,0.05076599,145.08,145.07,6.89]
[1740751702492,0.05076599,145.08,145.05,0.05011679]
[1740751702893,0.05076599,145.08,145.05,6.94011679]
[1740751703497,0.05076599,145.08,145.05,0.05011679]
[1740751704396,0.05076599,145.08,145.05,6.94011679]
[1740751704889,17.22,145.15,145.07,6.89]
[1740751705095,17.22,145.15,145.14,6.89]
[1740751705291,226.3514,145.37,145.09,220.7]
[1740751705592,226.3514,145.37,145.27,6.89]
[1740751705789,226.3514,145.37,145.29,6.89]
[1740751705990,220.7,145.37,145.31,6.89]
[1740751706288,0.04630126,145.34,145.22,6.89]
[1740751706484,0.04630126,145.34,145.19,6.89]
[1740751706686,7.364,145.36,145.14,6.89]
[1740751706887,6.8927,145.17,145.11,5.48831902]
[1740751707193,220.7,145.22,145.12,6.89]
[1740751707394,220.7,145.24,145.13,6.89]
[1740751707587,0.04621019,145.18,145.16,0.04459637]
[1740751707992,6.8882,145.26,145.17,6.89]
[1740751708192,29.19611542,145.35,145.3,6.89]
[1740751708396,0.05091628,145.23,145.16,6.90008908]
[1740751708589,27.82012643,145.35,145.22,6.89]
[1740751708784,31.53702643,145.35,145.16,6.90008908]
[1740751708989,0.0525399,145.21,145.18,0.04671287]
[1740751709193,0.0525399,145.21,145.08,17.80267629]
[1740751709194,26.84,145.34,145.19,6.89]
[1740751709393,0.04464473,145.21,145.2,6.89]
[1740751709593,0.04464473,145.21,145.18,0.04897273]
[1740751709794,26.84,145.34,145.2,6.89]
[1740751710091,26.84,145.34,145.25,6.89]
[1740751710296,26.84,145.34,145.24,6.89]
[1740751710502,26.84,145.34,145.29,6.89]
[1740751710693,26.84,145.34,145.09,7.1636]
[1740751710893,26.84,145.34,145.3,0.04356139]
[1740751711192,30.28,145.34,145.23,6.89]
[1740751711396,26.84,145.34,145.19,6.89]
[1740751711593,26.84,145.34,145.27,6.89]
[1740751711594,30.2506,145.34,145.27,6.89]
[1740751711789,26.84,145.34,145.29,6.89]
[1740751711990,26.84,145.34,145.28,6.89]
[1740751712291,0.05189852,145.33,145.3,0.0508476]
[1740751712797,0.05189852,145.33,145.3,6.90629195]
[1740751712998,0.05189852,145.33,145.3,0.0508476]
[1740751713297,220.57189852,145.33,145.11,1.18863844]
[1740751713499,220.57189852,145.33,145.24,6.89]
[1740751713695,220.52,145.33,145.22,6.89]
[1740751713888,220.52,145.33,145.11,6.85544435]
[1740751714095,220.52,145.33,145.14,6.89]
[1740751714297,220.52,145.33,145.11,6.85544435]
[1740751714488,0.04558237,145.23,145.21,1.711e-05]
[1740751714992,27.52,145.3,145.21,3.44]
[1740751715189,27.52,145.3,145.22,3.624]
[1740751715394,27.52,145.3,145.29,6.89]
[1740751715589,27.52,145.3,145.25,0.04761799]
[1740751715590,0.04351868,145.27,145.25,0.04761799]
[1740751715994,20.66455565,145.3,145.26,6.89]
[1740751716395,0.05048305,145.29,145.26,6.89]
[1740751716601,0.05048305,145.29,145.28,6.89]
[1740751716895,0.05048305,145.29,145.25,0.0509202]
[1740751717498,3.49048305,145.29,145.14,14.22904013]
[1740751717701,20.66455565,145.3,145.16,6.89]
[1740751717896,20.66455565,145.3,145.07,17.85304013]
[1740751718101,20.66455565,145.3,145.23,6.89]
[1740751718302,20.66455565,145.3,145.19,6.89]
[1740751718602,0.05208116,145.26,145.23,0.04915169]
[1740751718798,0.05208116,145.26,145.21,6.89]
[1740751718997,0.05208116,145.26,145.11,5.4477297]
[1740751718998,20.66455565,145.3,145.15,6.89]
[1740751719204,0.04760427,145.26,145.14,6.89]
[1740751719500,3.5799,145.29,145.11,6.89]
[1740751719696,4.95645723,145.29,145.07,3.624]
[1740751719900,4.95645723,145.29,145.12,6.89]
[1740751720099,1.37665198,145.28,145.12,6.89]
[1740751720302,1.37665198,145.28,145.07,3.624]
[1740751720503,0.05093824,145.22,145.19,6.9337381]
[1740751720695,1.37665198,145.28,145.19,6.89]
[1740751720900,0.04911651,145.22,145.19,0.04364586]
[1740751721093,3.5799,145.29,145.07,3.624]
[1740751721293,220.38,145.28,145.19,0.05062302]
[1740751721495,0.05041512,145.22,145.06,5.47088232]
[1740751721700,1.37731561,145.21,144.96,14.23857399]
[1740751722001,1.37731561,145.21,144.99,6.89]
[1740751722195,1.37731561,145.21,144.96,14.23857399]
[1740751722397,1.19994769,145.2,144.89,8.75341172]
[1740751722704,0.04976903,145.1,144.89,15.64341172]
[1740751722895,221.85845475,145.09,144.83,8.75341172]
[1740751723098,221.85845475,145.09,144.82,41.56689242]
[1740751723099,5.15334976,145.08,144.82,41.56689242]
[1740751723401,22.38864479,145.07,144.82,17.32839242]
[1740751723605,6.91,144.8,144.79,91.75982831]
[1740751723908,220.48,144.8,144.79,91.75982831]
[1740751724102,220.48,144.8,144.79,23.06561243]
[1740751724300,223.94,144.8,144.79,23.06561243]
[1740751724700,0.05305758,144.81,144.78,0.04551868]
[1740751724908,0.05305758,144.81,144.79,6.89]
[1740751725203,0.05305758,144.81,144.8,6.89]
[1740751725506,220.48,144.88,144.8,6.89]
[1740751725703,220.48,144.88,144.83,6.89]
[1740751725900,220.48,144.88,144.65,25.09372033]
[1740751725901,220.68,144.96,144.87,6.89]
[1740751726094,220.68,145.02,144.9,6.89]
[1740751726300,220.68,145.02,144.93,6.89]
[1740751726497,220.68,145.02,144.92,6.89]
[1740751726705,0.04826593,144.99,144.96,0.05309879]
[1740751726901,0.04826593,144.99,144.96,4.121e-05]
[1740751727109,3.44,144.99,144.75,10.4998]
[1740751727302,27.82012643,145.0,144.92,6.89]
[1740751727612,27.82012643,145.0,144.85,6.89]
[1740751727807,27.82012643,145.0,144.8,6.89]
[1740751728004,27.82012643,145.0,144.87,6.89]
[1740751728208,0.05282748,144.91,144.89,0.04623052]
[1740751728514,220.68,144.9,144.77,6.89]
[1740751728707,220.78,144.89,144.75,6.89]
[1740751728908,220.78,144.95,144.86,6.89]
[1740751729109,0.04661996,144.83,144.82,0.04800605]
[1740751729318,0.04661996,144.83,144.62,220.78]
[1740751729510,27.82012643,145.0,144.81,0.04813204]
[1740751729511,220.78,144.85,144.81,0.04813204]
[1740751729818,220.78,144.85,144.79,6.89]
[1740751730014,220.78,144.85,144.82,0.04409563]
[1740751730015,0.04952495,144.84,144.82,0.04409563]
[1740751730413,220.78,144.99,144.83,6.89]
[1740751730712,220.78,144.99,144.9,6.89]
[1740751730915,220.78,144.99,144.72,220.78]
[1740751731116,220.78,144.99,144.86,6.89]
[1740751731316,236.03,144.99,144.84,6.89]
[1740751731511,236.03,144.99,144.75,20.6532]
[1740751731707,1.37950062,144.98,144.75,6.8532]
[1740751731909,0.04810759,144.93,144.9,0.04437609]
[1740751732106,1.37950062,144.98,144.75,20.6532]
[1740751732312,0.05291891,144.93,144.9,0.0490308]
[1740751732518,1.37950062,144.98,144.83,6.89]
[1740751732816,0.04932872,144.93,144.9,8.919e-05]
[1740751733012,0.04932872,144.93,144.62,1.38293458]
[1740751733215,1.20198735,144.95,144.62,15.18293458]
[1740751733510,1.20198735,144.95,144.62,13.8]
[1740751733718,1.37988133,144.94,144.74,6.89]
[1740751734013,1.20198735,144.93,144.8,6.89]
[1740751734213,0.0522013,144.85,144.83,0.05081627]
[1740751734515,220.9,144.84,144.76,6.89]
[1740751735018,220.9,144.84,144.65,5.21928625]
[1740751735313,220.9,144.84,144.76,6.89]
[1740751735516,220.9,144.84,144.74,6.89]
[1740751735709,0.04662547,144.81,144.66,5.21928625]
[1740751736212,1.20287034,144.83,144.66,5.21928625]
[1740751736409,1.38121546,144.8,144.66,5.21928625]
[1740751736610,1.20287034,144.79,144.67,5.21928625]
[1740751736808,1.38121546,144.8,144.67,5.21928625]
[1740751737111,1.38121546,144.8,144.51,9.42278746]
[1740751737112,0.04768181,144.74,144.51,9.42278746]
[1740751737312,0.04768181,144.74,144.59,3.6726]
[1740751737506,1.38121546,144.8,144.6,3.5206]
[1740751737713,1.38121546,144.8,144.6,12.94338746]
[1740751738212,0.04498273,144.71,144.69,0.04852945]
[1740751738417,1.38121546,144.8,144.69,0.04852945]
[1740751738618,1.38121546,144.8,144.6,3.5206]
[1740751738807,1.38121546,144.8,144.6,17.32061327]
[1740751739012,1.38121546,144.8,144.59,3.6726]
[1740751739213,1.20309091,144.79,144.59,3.6726]
[1740751739411,1.38140627,144.78,144.54,9.42278746]
[1740751739712,1.38140627,144.78,144.55,9.42278746]
[1740751739713,1.20309091,144.77,144.55,9.42278746]
[1740751739914,1.38140627,144.78,144.56,13.12048746]
[1740751740219,1.38140627,144.78,144.56,3.6977]
[1740751740519,1.38140627,144.78,144.42,221.04]
[1740751740520,13.8242,144.76,144.44,9.42278746]
[1740751740817,0.04924576,144.68,144.45,9.42278746]
[1740751741012,221.1,144.67,144.46,9.42278746]
[1740751741217,1.38255219,144.66,144.47,9.42278746]
[1740751741414,1.20442863,144.65,144.45,9.42278746]
[1740751741614,1.38274336,144.64,144.36,9.42278746]
[1740751741921,1.20442863,144.63,144.37,9.42278746]
[1740751742215,6.9286,144.42,144.38,9.42278746]
[1740751742416,213.52454601,144.48,144.34,9.42278746]
[1740751742612,213.52454601,144.48,144.35,9.42278746]
[1740751742818,213.52454601,144.48,144.34,9.42278746]
[1740751743012,213.52454601,144.48,144.26,9.42278746]
[1740751743212,1.20608518,144.47,144.27,9.42278746]
[1740751743418,0.04450973,144.38,144.36,0.04439346]
[1740751743714,213.52454601,144.48,144.29,9.42278746]
[1740751743918,213.52454601,144.48,144.25,3.4657]
[1740751743919,213.52454601,144.48,144.3,9.42278746]
[1740751744120,213.52454601,144.48,144.31,9.42278746]
[1740751744322,213.52454601,144.48,144.32,9.42278746]
[1740751744515,213.52454601,144.48,144.26,9.42278746]
[1740751744823,213.52454601,144.48,144.27,9.42278746]
[1740751745121,221.3,144.59,144.36,0.04936195]
[1740751745323,1.38331719,144.58,144.46,6.9261]
[1740751745616,221.3,144.69,144.47,10.7548]
[1740751745819,27.82012643,144.58,144.47,10.7548]
[1740751746011,16.43052643,144.58,144.47,10.7548]
[1740751746314,0.04568305,144.54,144.51,0.04972215]
[1740751746712,16.43052643,144.58,144.51,13.84981285]
[1740751746910,16.43052643,144.58,144.51,0.04972215]
[1740751747914,0.05095246,144.56,144.51,0.04972215]
[1740751748113,221.34,144.55,144.27,9.42278746]
[1740751748309,0.05095246,144.56,144.28,12.01883944]
[1740751748514,15.28,144.55,144.43,6.9277]
[1740751748719,15.28,144.55,144.36,221.34]
[1740751748920,15.28,144.55,144.37,1.208697]
[1740751749123,9.5791,144.55,144.37,1.208697]
[1740751749325,221.34,144.62,144.45,0.04924711]
[1740751749718,221.34,144.62,144.47,6.9254]
[1740751750029,221.34,144.62,144.45,9.9218907]
[1740751750216,221.34,144.62,144.28,1.38619351]
[1740751750523,4.84206413,144.61,144.29,1.21067767]
[1740751750718,0.04534735,144.46,144.44,0.04920499]
[1740751751022,0.04534735,144.46,144.29,1.21067767]
[1740751751023,221.38,144.59,144.3,1.21082116]
[1740751751224,1.38303021,144.61,144.3,4.98022116]
[1740751751419,1.38303021,144.61,144.31,1.21082116]
[1740751751818,1.38303021,144.61,144.51,6.9236]
[1740751752025,1.38303021,144.61,144.4,221.38]
[1740751752317,0.05032123,144.57,144.55,0.05326507]
[1740751752525,1.20449477,144.67,144.42,3.763]
[1740751752719,0.26,144.64,144.42,3.763]
[1740751752919,0.26,144.64,144.45,6.9263]
[1740751753119,0.26,144.64,144.42,13.6848907]
[1740751753316,1.20460075,144.63,144.42,9.9218907]
[1740751753520,3.7055,144.62,144.42,9.9218907]
[1740751753714,0.0504642,144.54,144.52,0.04905718]
[1740751754128,221.38,144.61,144.47,6.9255]
[1740751754321,0.05291,144.54,144.52,0.04529251]
[1740751754825,221.38,144.61,144.32,3.6505]
[1740751755029,0.04582593,144.54,144.52,0.05242688]
[1740751755217,1715.84,144.57,144.33,1.20960031]
[1740751755421,3.4969,144.56,144.33,9.9218907]
[1740751755619,1.20575219,144.55,144.15,3.5054]
[1740751755818,1.38370001,144.54,144.16,1.21530256]
[1740751756022,1.20575219,144.53,144.15,13.4272907]
[1740751756225,1.20575219,144.53,144.16,3.6564]
[1740751756530,0.04584098,144.35,144.33,0.04806768]
[1740751756827,221.42,144.34,144.16,3.6564]
[1740751757030,221.42,144.33,144.16,3.6564]
[1740751757623,221.42,144.41,144.16,3.6564]
[1740751757828,221.42,144.46,144.23,0.05051759]
[1740751758023,221.42,144.49,144.17,1.21581952]
[1740751758630,221.42,144.49,144.18,1.38715494]
[1740751758930,221.42,144.49,144.25,6.9361]
[1740751759235,0.0483489,144.35,144.32,0.0462039]
[1740751759419,0.0483489,144.35,144.18,11.30904564]
[1740751759420,221.45212261,144.34,144.18,1.38715494]
[1740751759619,221.45212261,144.34,144.32,0.04831126]
[1740751759823,221.45212261,144.34,144.18,1.38715494]
[1740751760025,221.4994734,144.34,144.32,0.04943268]
[1740751760326,221.45212261,144.34,144.18,9.9218907]
[1740751760526,221.50388329,144.34,144.32,0.05312383]
[1740751760724,221.45212261,144.34,144.16,7.3466]
[1740751760925,221.49864884,144.34,144.32,0.04377905]
[1740751761120,221.45212261,144.34,144.32,0.04377905]
[1740751761422,221.5,144.42,144.32,0.05056554]
[1740751761620,221.6,144.49,144.32,0.05056554]
[1740751761824,221.6,144.49,144.18,1.21506854]
[1740751762123,221.6,144.49,144.28,6.9349]
[1740751762319,221.6,144.49,144.29,7.1291]
[1740751762725,0.04660499,144.4,144.38,0.04450924]
[1740751763127,221.6,144.49,144.29,7.1291]
[1740751763423,0.04787748,144.4,144.38,0.04807667]
[1740751763729,73.07777355,144.58,144.29,10.5891]
[1740751763921,73.07777355,144.58,144.3,1.38600138]
[1740751764128,26.84,144.58,144.31,1.21196369]
[1740751764424,26.84,144.58,144.32,1.38580931]
[1740751764832,0.04993131,144.46,144.44,0.04360951]
[1740751765029,26.84,144.58,144.44,0.04360951]
[1740751765232,26.84,144.58,144.44,9.9218907]
[1740751765628,26.84,144.58,144.32,1.38580931]
[1740751766329,26.84,144.58,144.44,0.04516015]
[1740751766330,0.05015512,144.46,144.44,0.04516015]
[1740751766633,26.84,144.58,144.33,10.63544593]
[1740751766823,26.84,144.58,144.34,12.02106322]
[1740751767027,26.84,144.58,144.35,12.02096723]
[1740751767229,26.84,144.58,144.36,10.80821278]
[1740751767426,26.84,144.58,144.37,9.42278746]
[1740751767629,0.04792838,144.48,144.46,0.04748913]
[1740751767829,221.54,144.48,144.36,9.9218907]
[1740751768131,221.54,144.48,144.33,3.7927]
[1740751768132,225.04770137,144.48,144.33,3.7927]
[1740751768436,193.99663756,144.48,144.33,3.7927]
[1740751768632,195.3809122,144.48,144.3,9.42278746]
[1740751768833,195.3809122,144.48,144.31,9.42278746]
[1740751769031,195.3809122,144.48,144.25,9.42278746]
[1740751769231,195.3809122,144.48,144.26,9.42278746]
[1740751769435,0.04903735,144.38,144.35,0.05077844]
[1740751769632,6.9308,144.37,144.35,0.05077844]
[1740751769828,221.54,144.38,144.29,9.42278746]
[1740751770028,221.54,144.38,144.35,0.05231471]
[1740751770029,0.05185918,144.37,144.35,0.05231471]
[1740751770233,0.05185918,144.37,144.24,3.479]
[1740751770432,27.69,144.42,144.35,0.05327129]
[1740751770827,0.04793497,144.4,144.35,9.92198607]
[1740751771033,0.04793497,144.4,144.37,0.04693724]
[1740751771327,27.69,144.42,144.25,11.30846787]
[1740751771538,0.05020829,144.4,144.37,0.04374711]
[1740751771734,6.9301,144.39,144.25,8.3223818]
[1740751771928,0.05084417,144.4,144.37,0.04759704]
[1740751772236,27.69,144.42,144.24,3.479]
[1740751772437,27.69,144.42,144.24,13.40098607]
[1740751772934,6.932,144.35,144.24,13.40098607]
[1740751773130,27.69,144.42,144.24,3.479]
[1740751773438,0.04489542,144.31,144.28,0.04478758]
[1740751773637,221.62,144.32,144.24,3.479]
[1740751774034,225.1683,144.41,144.27,0.04872969]
[1740751774230,0.04517454,144.29,144.27,9.97071576]
[1740751774429,225.1683,144.41,144.24,3.479]
[1740751774832,73.07777355,144.4,144.24,3.479]
[1740751775029,73.07777355,144.4,144.25,1.3864818]
[1740751775432,73.07777355,144.4,144.26,3.739]
[1740751775737,0.05273132,144.34,144.31,0.04656316]
[1740751775933,73.07777355,144.4,144.25,1.3864818]
[1740751776130,73.07777355,144.4,144.26,3.7312]
[1740751776538,57.45558748,144.4,144.27,4.99158959]
[1740751776840,57.45558748,144.4,144.28,1.38619351]
[1740751776841,48.31928748,144.4,144.28,1.38619351]
[1740751777036,48.31928748,144.4,144.32,0.05132695]
[1740751777237,0.04605022,144.35,144.32,0.05132695]
[1740751777438,48.31928748,144.4,144.32,3.51132695]
[1740751777638,48.31928748,144.4,144.32,0.05132695]
[1740751777838,48.31928748,144.4,144.32,3.51132695]
[1740751778042,48.31928748,144.4,144.37,6.9301]
[1740751778240,27.69,144.42,144.33,221.7]
[1740751778436,28.46268551,144.46,144.34,1.38561729]
[1740751778637,28.46268551,144.46,144.36,0.04470913]
[1740751778837,28.46268551,144.46,144.34,1.38561729]
[1740751779039,34.68299587,144.47,144.34,1.38561729]
[1740751779338,34.68299587,144.47,144.41,6.9287]
[1740751779640,34.68299587,144.47,144.34,1.38561729]
[1740751779842,0.05180636,144.45,144.43,0.05135421]
[1740751780042,3.6869,144.59,144.35,1.20575432]
[1740751780239,33.76,144.58,144.36,1.38542532]
[1740751781041,33.76,144.58,144.27,3.6053]
[1740751781241,0.05088347,144.48,144.27,4.99158959]
[1740751781446,221.66,144.57,144.27,4.99158959]
[1740751781639,27.67,144.56,144.28,2.59286402]
[1740751781839,27.67,144.56,144.29,2.59276795]
[1740751782143,34.59,144.56,144.3,2.59201826]
[1740751782338,0.04617064,144.44,144.41,0.04851279]
[1740751782540,34.59,144.56,144.32,1.20601688]
[1740751782739,0.04995521,144.44,144.41,0.05111419]
[1740751782938,0.04995521,144.44,144.32,1.20601688]
[1740751783138,0.04521886,144.39,144.33,3.5481332]
[1740751783344,0.19,144.55,144.37,0.04925967]
[1740751783545,0.19,144.55,144.38,225.1681332]
[1740751783747,0.19,144.55,144.39,3.5481332]
[1740751784044,5.5643403,144.54,144.4,3.5359888]
[1740751784248,0.19,144.55,144.41,9.29096922]
[1740751784450,1.953e-05,144.48,144.46,0.04720503]
[1740751784644,0.19,144.55,144.39,10.64846083]
[1740751784645,0.19,144.55,144.47,9.29096922]
[1740751784844,27.67,144.56,144.48,230.91096922]
[1740751785044,27.67,144.56,144.49,230.91096922]
[1740751785241,109.61666032,144.68,144.39,3.46]
[1740751785242,109.61666032,144.68,144.5,241.55943005]
[1740751785444,109.61666032,144.68,144.51,241.45943005]
[1740751785645,116.53667918,144.68,144.53,0.05134174]
[1740751785841,0.04768361,144.61,144.54,20.48818952]
[1740751786040,0.04768361,144.61,144.55,20.48818952]
[1740751786245,109.61666032,144.68,144.56,9.83972869]
[1740751786446,0.04389944,144.59,144.57,9.83972869]
[1740751786646,116.53667918,144.68,144.6,0.0448069]
[1740751786848,109.61666032,144.68,144.61,9.83972869]
[1740751787150,0.05049314,144.65,144.63,0.05284756]
[1740751787345,0.05049314,144.65,144.64,9.83972869]
[1740751787548,6.92001886,144.65,144.64,9.83972869]
[1740751787746,0.04728266,144.66,144.64,9.83972869]
[1740751787948,0.04728266,144.66,144.65,9.83972869]
[1740751788347,6.96730152,144.66,144.65,9.83972869]
[1740751789152,0.04728266,144.66,144.65,9.83972869]
[1740751789553,6.96730152,144.66,144.65,4.15502869]
[1740751789855,0.04728266,144.66,144.46,10.64846083]
[1740751790047,3.7582,144.65,144.43,221.44]
[1740751790351,3.7582,144.65,144.47,1.38437045]
[1740751790554,10.67821886,144.65,144.47,1.38437045]
[1740751790749,10.67821886,144.65,144.55,6.9218]
[1740751790949,0.04941413,144.57,144.55,0.04530078]
[1740751791146,10.67821886,144.65,144.47,1.38437045]
[1740751791346,0.04996015,144.57,144.55,0.04576481]
[1740751791549,10.67821886,144.65,144.47,1.38437045]
[1740751791752,0.04531323,144.57,144.55,0.05025549]
[1740751792054,10.67821886,144.65,144.47,1.38437045]
[1740751792254,0.05202078,144.57,144.55,0.05289133]
[1740751792454,6.9177,144.64,144.47,1.38437045]
[1740751792651,10.67821886,144.65,144.55,0.04561188]
[1740751792848,0.04760508,144.57,144.47,1.38437045]
[1740751793057,10.67821886,144.65,144.47,1.38437045]
[1740751793260,0.05213931,144.57,144.55,0.04741737]
[1740751793457,0.04738213,144.57,144.47,1.38437045]
[1740751793651,0.04738213,144.57,144.55,0.04907997]
[1740751793851,3.7582,144.65,144.47,1.38437045]
[1740751794063,0.04433789,144.57,144.47,1.38437045]
[1740751794359,3.7582,144.65,144.47,1.38437045]
[1740751794563,3.7582,144.65,144.51,0.04851415]
[1740751794757,10.67821886,144.65,144.51,0.04851415]
[1740751794958,3.4252,144.64,144.48,10.64846083]
[1740751795160,3.4252,144.64,144.49,12.03263966]
[1740751795352,3.7582,144.65,144.5,12.03254387]
[1740751795655,3.4252,144.71,144.51,10.64846083]
[1740751795860,14.0393,144.71,144.6,6.9195]
[1740751796060,0.04460153,144.62,144.53,221.36]
[1740751796262,14.04491886,144.71,144.61,6.9191]
[1740751796757,6.9178,144.64,144.53,6.9226]
[1740751796968,14.04491886,144.71,144.54,1.38370001]
[1740751797262,6.9188,144.62,144.54,1.38370001]
[1740751797454,3.7802,144.61,144.54,1.38370001]
[1740751797651,3.7802,144.61,144.57,0.04521183]
[1740751797863,0.04496611,144.59,144.45,221.36]
[1740751798058,0.04496611,144.59,144.37,221.36]
[1740751798262,6.92001886,144.59,144.38,10.64846083]
[1740751798562,6.92001886,144.59,144.33,17.2852]
[1740751798563,6.92001886,144.59,144.34,8.53920999]
[1740751799057,6.537e-05,144.48,144.45,0.0438586]
[1740751799363,3.7802,144.6,144.35,236.63301394]
[1740751799659,3.7802,144.6,144.35,235.42916083]
[1740751799859,10.70021886,144.6,144.36,16.60273475]
[1740751800058,10.70021886,144.6,144.37,17.80567003]
[1740751800265,10.70021886,144.6,144.38,17.80567003]
[1740751800558,6.918e-05,144.5,144.49,6.9249]
[1740751800761,6.92001886,144.5,144.49,5.95427392]
[1740751800959,221.36,144.58,144.36,10.64846083]
[1740751801161,4.53,144.57,144.34,8.53920999]
[1740751801566,11.45001886,144.57,144.34,8.53920999]
[1740751801755,11.45001886,144.57,144.35,3.72392061]
[1740751801955,0.05315335,144.47,144.44,0.04739415]
[1740751802161,11.45001886,144.57,144.45,3.72392061]
[1740751802361,11.45001886,144.57,144.46,3.72392061]
[1740751802655,0.05186018,144.53,144.47,3.72392061]
[1740751802857,11.45001886,144.57,144.5,0.04571617]
[1740751803064,11.45001886,144.57,144.48,3.72392061]
[1740751803065,11.45001886,144.57,144.51,3.72392061]
[1740751803367,11.45001886,144.57,144.52,3.77403872]
[1740751803563,0.04435355,144.55,144.53,3.72392061]
[1740751803768,5.355e-05,144.55,144.54,10.64642061]
[1740751803966,6.92007241,144.55,144.54,3.72392061]
[1740751804160,4.53,144.57,144.39,221.36]
[1740751804367,232.85001886,144.57,144.29,10.64846083]
[1740751804566,232.85001886,144.57,144.21,34.15246021]
[1740751804567,232.85001886,144.57,144.22,10.64846083]
[1740751804870,232.85001886,144.57,144.23,1.20445959]
[1740751805164,2.87887235,144.56,144.21,34.15246021]
[1740751805362,0.04650827,144.41,144.21,34.15246021]
[1740751805568,221.4,144.4,144.21,34.15246021]
[1740751805769,6.9313,144.36,144.22,6.9373]
[1740751806069,3.5474,144.39,144.21,34.15246021]
[1740751806263,10.46736766,144.39,144.21,28.46366021]
[1740751806469,0.04703991,144.31,144.29,0.04970472]
[1740751806666,1.67350857,144.56,144.21,28.46366021]
[1740751806868,8.57e-06,144.57,144.3,3.46]
[1740751807070,3.5474,144.81,144.31,1.20509842]
[1740751807264,32.8097185,144.6,144.32,232.67504488]
[1740751807466,3.7328,144.97,144.33,12.082307]
[1740751807662,3.7328,144.97,144.34,33.092307]
[1740751807663,7.3531,144.97,144.34,33.092307]
[1740751807969,0.04501623,144.66,144.64,0.05104009]
[1740751808368,221.5,144.76,144.45,0.288]
[1740751808569,225.1203,144.75,144.36,221.5]
[1740751808768,3.6203,144.75,144.44,0.288]
[1740751808968,65.9003,144.75,144.44,0.288]
[1740751809164,65.9003,144.75,144.45,14.41241708]
[1740751809567,0.04462125,144.61,144.46,5.54323734]
[1740751809968,7.3706,144.61,144.46,382.84509491]
[1740751810173,7.3706,144.61,144.46,362.16669491]
[1740751810367,7.3706,144.61,144.46,350.81069491]
[1740751810771,7.3706,144.61,144.52,0.05326867]
[1740751810975,0.04627459,144.55,144.46,326.91256358]
[1740751811163,7.3706,144.61,144.46,326.91256358]
[1740751811369,7.3706,144.61,144.46,321.23206358]
[1740751811874,10.8306,144.61,144.46,279.72206358]
[1740751812070,0.04738149,144.55,144.46,279.72206358]